bitfinex/quotes_ETHUSD_20241003
["timestamp","ask_amount","ask_price","bid_price","bid_amount"]
[1727929564245,3.33536,2398.6,2398.1,4.16528]
[1727929564448,3.33536,2398.6,2398.2,0.92500082]
[1727929565518,3.33536,2398.6,2398.3,0.7517]
[1727929565917,6.67072,2398.6,2398.3,0.7517]
[1727929566646,3.33547,2398.5,2398.3,0.7517]
[1727929571654,3.33547,2398.5,2398.3,0.75044473]
[1727929572931,3.33536,2398.6,2398.3,0.75044473]
[1727929573546,10.72182,2399.0,2398.3,4.56539671]
[1727929573718,3.33482,2399.0,2398.5,3.33534]
[1727929573918,3.33482,2399.0,2398.6,0.03919514]
[1727929574657,6.66965,2399.0,2398.7,0.7921]
[1727929574827,3.33482,2399.0,2398.7,0.7921]
[1727929575164,3.33425,2399.4,2398.9,0.8065]
[1727929575374,3.33411,2399.5,2399.0,4.22456862]
[1727929575536,3.33411,2399.5,2399.0,5.10349315]
[1727929575945,3.33418,2399.4,2399.0,1.76878315]
[1727929576663,3.33418,2399.4,2399.0,1.68542453]
[1727929576664,3.33439,2399.3,2399.0,1.68542453]
[1727929576859,3.33439,2399.3,2399.0,0.8065]
[1727929577436,3.33418,2399.4,2399.0,0.8065]
[1727929577632,6.66843,2399.4,2399.0,0.8065]
[1727929577832,3.33418,2399.4,2399.0,0.8065]
[1727929578040,3.33418,2399.4,2399.1,0.414133]
[1727929578752,3.33418,2399.4,2399.1,0.49748884]
[1727929579721,3.33418,2399.4,2399.0,0.8065]
[1727929580262,6.66843,2399.4,2399.0,0.8065]
[1727929583959,3.33418,2399.4,2399.0,0.8065]
[1727929584129,6.66845,2399.4,2399.0,0.8065]
[1727929584750,3.33418,2399.4,2399.0,0.8065]
[1727929584954,3.33418,2399.4,2399.0,1.220641]
[1727929586379,3.33418,2399.4,2399.0,0.8065]
[1727929587599,6.66845,2399.4,2399.0,0.8065]
[1727929587752,3.33418,2399.4,2399.0,0.8065]
[1727929588150,6.66841,2399.4,2399.0,0.8065]
[1727929588402,3.33418,2399.4,2399.0,0.8065]
[1727929589391,6.66843,2399.4,2399.0,0.8065]
[1727929589549,3.33445,2399.2,2399.0,0.8065]
[1727929589959,6.66856,2399.4,2399.0,0.8065]
[1727929591295,3.33434,2399.3,2399.0,0.8065]
[1727929598059,3.52746,2399.7,2399.0,0.8065]
[1727929598358,3.33454,2399.2,2399.0,0.8065]
[1727929601133,3.33431,2399.3,2399.0,0.8065]
[1727929601622,3.33427,2399.4,2399.0,0.8065]
[1727929601960,3.33444,2399.2,2399.0,0.8065]
[1727929606545,3.52795,2399.4,2399.0,0.8065]
[1727929606749,3.33431,2399.3,2399.0,0.8065]
[1727929609412,3.52795,2399.4,2399.0,0.8065]
[1727929609618,3.33425,2399.4,2399.0,0.8065]
[1727929610115,6.6685,2399.4,2399.0,0.8065]
[1727929610714,3.33435,2399.3,2399.0,0.8065]
[1727929615603,3.33425,2399.4,2399.0,0.8065]
[1727929615805,3.33458,2399.1,2398.8,0.7503]
[1727929616009,3.33486,2398.9,2398.8,0.7503]
[1727929616440,3.33513,2398.7,2398.6,0.7503]
[1727929616652,3.33528,2398.6,2398.4,1.6551043]
[1727929616856,3.33528,2398.6,2398.4,0.7799]
[1727929617034,3.33501,2398.8,2398.4,0.7799]
[1727929617035,6.67012,2398.8,2398.4,0.7799]
[1727929617820,3.33518,2398.7,2398.4,0.7799]
[1727929619451,3.33501,2398.8,2398.4,0.7799]
[1727929619856,6.33459,2399.1,2398.6,4.10287]
[1727929620058,3.33425,2399.4,2398.9,3.33478]
[1727929620226,3.33425,2399.4,2399.1,0.7676]
[1727929620747,3.33435,2399.3,2399.1,0.7676]
[1727929621047,3.33444,2399.2,2398.8,0.8287]
[1727929621448,3.33435,2399.3,2398.8,0.8287]
[1727929621606,3.33435,2399.3,2398.8,1.79738825]
[1727929621808,3.33435,2399.3,2398.8,6.00756255]
[1727929622779,3.33435,2399.3,2398.8,5.17886255]
[1727929622985,3.33435,2399.3,2398.9,0.7944]
[1727929626007,6.66825,2399.5,2399.0,0.7589]
[1727929626208,3.33418,2399.4,2399.0,0.7589]
[1727929628216,7.75595139,2399.8,2399.0,0.7589]
[1727929628517,3.3344,2399.3,2399.0,0.7589]
[1727929629014,6.66883,2399.3,2399.0,0.7589]
[1727929630316,3.3344,2399.3,2399.0,0.7589]
[1727929630712,6.66878,2399.3,2399.0,0.7589]
[1727929632084,3.33458,2399.1,2399.0,0.7589]
[1727929632790,3.33438,2399.3,2399.0,0.7589]
[1727929632791,6.66881,2399.3,2399.0,0.7589]
[1727929633092,3.33446,2399.2,2399.0,0.7589]
[1727929636519,3.33458,2399.1,2399.0,0.7589]
[1727929636707,3.33458,2399.1,2398.8,1.6585043]
[1727929637911,3.33427,2399.4,2398.8,2.49751484]
[1727929638243,3.33427,2399.4,2399.0,0.8752043]
[1727929638394,3.33427,2399.4,2399.1,0.7833]
[1727929638596,6.66851,2399.4,2399.1,0.7833]
[1727929639235,3.33424,2399.4,2399.1,0.7833]
[1727929639549,3.3343,2399.3,2399.1,0.7833]
[1727929640410,3.33424,2399.4,2399.1,0.7833]
[1727929640614,6.66854,2399.4,2399.1,0.7833]
[1727929640822,6.66854,2399.4,2399.1,1.17211271]
[1727929640823,3.33424,2399.4,2399.1,1.17211271]
[1727929641011,7.56228139,2399.8,2399.2,0.8248]
[1727929641012,6.66791,2399.6,2399.2,0.8248]
[1727929641228,3.33404,2399.5,2399.2,0.8248]
[1727929642237,6.66793,2399.6,2399.2,0.8248]
[1727929642552,3.33417,2399.4,2399.2,0.8248]
[1727929649533,3.3343,2399.3,2399.2,0.8248]
[1727929649741,3.3343,2399.3,2399.0,0.7695]
[1727929650956,3.33428,2399.4,2399.0,0.7695]
[1727929653576,3.33428,2399.4,2399.0,1.6447043]
[1727929653776,3.33399,2399.6,2399.1,3.33457]
[1727929653978,3.33371,2399.8,2399.2,4.10092]
[1727929654179,6.66745,2399.8,2399.2,4.18427063]
[1727929654384,3.33375,2399.7,2399.2,4.18427063]
[1727929655164,3.33375,2399.7,2399.2,0.84985063]
[1727929655564,3.33375,2399.7,2399.2,2.03966621]
[1727929655872,3.33375,2399.7,2399.3,0.7665]
[1727929656663,3.33354,2399.9,2399.3,3.33419]
[1727929656863,3.52684,2400.2,2399.6,3.33381]
[1727929657103,3.33314,2400.2,2399.7,0.89113472]
[1727929657273,3.33314,2400.2,2399.7,1.43649233]
[1727929657902,3.33321,2400.1,2399.7,1.43649233]
[1727929658676,3.33314,2400.2,2399.8,0.7591]
[1727929665416,3.3333,2400.1,2399.8,0.7591]
[1727929665624,3.33334,2400.0,2399.8,0.7591]
[1727929667882,3.33362,2399.8,2399.5,0.794]
[1727929668102,0.1937,2399.8,2399.3,0.794]
[1727929668285,3.33397,2399.6,2399.3,0.794]
[1727929669765,3.33388,2399.7,2399.3,0.794]
[1727929673983,3.52731,2399.8,2399.3,4.12826]
[1727929674190,3.33361,2399.8,2399.3,4.12826]
[1727929675068,1.42233139,2400.0,2399.5,0.7587]
[1727929675069,3.52705,2400.0,2399.5,0.7587]
[1727929675384,3.33335,2400.0,2399.5,0.7587]
[1727929675584,3.33335,2400.0,2399.5,4.09265]
[1727929675794,3.33356,2399.9,2399.5,0.7587]
[1727929675980,3.33362,2399.8,2399.5,0.7587]
[1727929677111,3.33362,2399.8,2399.3,0.8225]
[1727929677112,3.33388,2399.7,2399.3,0.8225]
[1727929677779,3.33348,2399.9,2399.5,0.797]
[1727929682685,3.33361,2399.8,2399.5,0.797]
[1727929686729,3.33343,2400.0,2399.5,0.797]
[1727929687101,3.33356,2399.9,2399.5,0.797]
[1727929687302,3.33367,2399.8,2399.5,0.797]
[1727929688811,3.33375,2399.7,2399.5,0.797]
[1727929690703,3.33362,2399.8,2399.5,0.797]
[1727929693803,3.33356,2399.9,2399.5,0.797]
[1727929694443,6.66716,2399.9,2399.5,0.797]
[1727929695632,3.33363,2399.8,2399.5,0.797]
[1727929695818,3.33333,2400.0,2399.6,0.7834]
[1727929696027,3.33317,2400.2,2399.8,0.7834]
[1727929696218,3.33287,2400.4,2399.9,4.20019821]
[1727929696551,3.33238,2400.7,2400.3,0.8178]
[1727929696745,3.33231,2400.8,2400.4,0.53794014]
[1727929696905,3.33203,2401.0,2400.5,0.90110786]
[1727929697424,6.66411,2401.0,2400.5,0.8178]
[1727929697621,3.33215,2400.9,2400.5,0.8178]
[1727929699231,1.22863139,2401.2,2400.5,0.8178]
[1727929699433,3.33229,2400.8,2400.5,0.8178]
[1727929699638,3.33229,2400.8,2400.5,0.81620553]
[1727929700346,3.33238,2400.7,2400.5,0.81620553]
[1727929703938,3.33229,2400.8,2400.5,0.81620553]
[1727929703939,6.66463,2400.8,2400.5,0.81620553]
[1727929704137,3.33229,2400.8,2400.5,0.81620553]
[1727929704775,6.6641,2401.0,2400.5,0.81620553]
[1727929705274,3.33203,2401.0,2400.5,4.65526915]
[1727929705562,3.33203,2401.0,2400.5,4.57196408]
[1727929705872,6.66408,2401.0,2400.5,1.23943408]
[1727929706052,6.66408,2401.0,2400.5,0.81620553]
[1727929706361,3.33203,2401.0,2400.5,0.81620553]
[1727929706525,3.33203,2401.0,2400.5,4.14883553]
[1727929707431,3.33203,2401.0,2400.5,0.81620553]
[1727929707668,6.66406,2401.0,2400.5,0.81620553]
[1727929707826,3.33203,2401.0,2400.5,0.81620553]
[1727929708427,6.66405,2401.0,2400.5,0.81620553]
[1727929708665,3.33215,2400.9,2400.5,0.81620553]
[1727929708879,3.33223,2400.8,2400.5,0.81620553]
[1727929710053,6.66406,2401.0,2400.5,0.81620553]
[1727929710263,3.33208,2400.9,2400.5,0.81620553]
[1727929711343,3.33202,2401.0,2400.5,4.14883553]
[1727929712303,4.56034139,2401.2,2400.5,4.14883553]
[1727929712304,3.33179,2401.2,2400.6,0.793]
[1727929712460,10.71861,2401.3,2400.6,0.793]
[1727929712461,3.3318,2401.1,2400.6,4.12548]
[1727929713455,3.33146,2401.4,2400.7,0.793]
[1727929713780,3.33141,2401.4,2401.0,3.33186]
[1727929714193,3.33104,2401.7,2401.1,3.33167]
[1727929714485,3.33128,2401.5,2401.3,0.792]
[1727929714992,3.33128,2401.5,2400.9,4.56061139]
[1727929714993,3.33128,2401.5,2401.0,0.792]
[1727929715160,3.33128,2401.5,2401.0,1.24806114]
[1727929715349,3.33139,2401.4,2401.0,1.24806114]
[1727929716494,3.33128,2401.5,2401.0,4.58000114]
[1727929717489,3.33128,2401.5,2401.0,1.24806114]
[1727929717784,3.3314,2401.4,2401.0,1.24806114]
[1727929717993,3.33128,2401.5,2401.0,1.24806114]
[1727929718291,6.66263,2401.5,2401.0,1.24806114]
[1727929719047,3.33128,2401.5,2401.0,1.24806114]
[1727929719251,6.66261,2401.5,2401.0,1.24806114]
[1727929719558,3.33128,2401.5,2401.0,1.24806114]
[1727929719751,6.66261,2401.5,2401.0,1.24806114]
[1727929719954,3.33128,2401.5,2401.0,1.24806114]
[1727929720184,3.33128,2401.5,2401.1,0.79120511]
[1727929720185,6.66261,2401.5,2401.1,0.79120511]
[1727929720350,3.33128,2401.5,2401.1,0.79120511]
[1727929720950,3.3314,2401.4,2401.1,0.79120511]
[1727929721345,6.66262,2401.5,2401.1,0.79120511]
[1727929721656,6.66262,2401.5,2401.0,0.792]
[1727929721964,3.33128,2401.5,2401.0,0.792]
[1727929722473,3.33153,2401.3,2401.0,0.792]
[1727929723413,6.66317,2401.3,2401.0,0.792]
[1727929723570,3.33153,2401.3,2401.0,0.792]
[1727929724104,6.66316,2401.3,2401.0,0.792]
[1727929724309,3.33153,2401.3,2401.0,0.792]
[1727929725181,6.66317,2401.3,2401.0,0.792]
[1727929726564,3.33153,2401.3,2401.0,0.792]
[1727929728408,6.66318,2401.3,2401.0,0.792]
[1727929728589,3.33153,2401.3,2401.0,0.792]
[1727929729525,6.66314,2401.3,2401.0,0.792]
[1727929731583,3.33153,2401.3,2401.0,0.792]
[1727929731827,6.66315,2401.3,2401.0,0.792]
[1727929733319,6.66314,2401.3,2401.0,0.792]
[1727929733889,3.33153,2401.3,2401.0,0.792]
[1727929735603,6.66314,2401.3,2401.0,0.792]
[1727929735787,3.33166,2401.2,2401.0,0.792]
[1727929737319,3.33153,2401.3,2401.0,0.792]
[1727929738032,6.66272,2401.5,2401.0,0.792]
[1727929738248,3.33159,2401.3,2401.0,0.792]
[1727929739613,6.66318,2401.3,2401.0,0.792]
[1727929740429,3.33168,2401.2,2401.0,0.792]
[1727929741499,3.33159,2401.3,2401.0,0.792]
[1727929743347,6.6632,2401.3,2401.0,0.792]
[1727929743709,3.33169,2401.2,2401.0,0.792]
[1727929746853,3.33142,2401.4,2401.0,0.792]
[1727929747217,6.66291,2401.4,2401.0,0.792]
[1727929748014,3.33154,2401.3,2401.0,0.792]
[1727929749218,3.33142,2401.4,2401.0,0.792]
[1727929749219,6.66293,2401.4,2401.0,0.792]
[1727929749420,3.33154,2401.3,2401.0,0.792]
[1727929752443,3.33169,2401.2,2401.0,0.792]
[1727929752834,3.33154,2401.3,2401.0,0.792]
[1727929753359,3.33139,2401.4,2401.0,0.792]
[1727929753964,3.33154,2401.3,2401.0,0.792]
[1727929754534,3.3314,2401.4,2401.0,0.792]
[1727929755322,3.33135,2401.5,2401.0,3.33186]
[1727929755519,3.33112,2401.6,2401.1,3.33173]
[1727929755763,3.33112,2401.6,2401.2,0.7723]
[1727929756060,3.33128,2401.5,2401.2,0.7723]
[1727929756427,3.3314,2401.4,2401.2,0.7723]
[1727929758240,3.33112,2401.6,2401.2,0.7723]
[1727929758241,3.33126,2401.5,2401.2,0.7723]
[1727929760938,3.33139,2401.4,2401.2,0.7723]
[1727929761597,3.33152,2401.3,2401.2,0.7723]
[1727929761966,3.33139,2401.4,2401.2,0.7723]
[1727929762810,6.6629,2401.4,2401.2,0.7723]
[1727929763995,6.6629,2401.4,2401.0,1.6470043]
[1727929765016,6.6629,2401.4,2401.0,0.7718]
[1727929765373,6.6629,2401.4,2401.0,1.6470043]
[1727929765573,3.33154,2401.3,2401.0,1.6470043]
[1727929765797,1.22863139,2401.4,2401.0,1.6470043]
[1727929765974,3.33201,2401.0,2400.8,1.6365043]
[1727929766383,3.33201,2401.0,2400.8,0.7613]
[1727929766895,3.33201,2401.0,2400.7,1.22146724]
[1727929767204,3.33201,2401.0,2400.7,0.34626294]
[1727929768369,3.32095653,2401.0,2400.7,0.34626294]
[1727929771119,6.66376,2401.1,2400.7,0.34626294]
[1727929771598,3.33198,2401.0,2400.7,0.34626294]
[1727929774013,3.33187,2401.1,2400.8,0.8077]
[1727929774175,3.33187,2401.1,2400.8,1.25633429]
[1727929774696,6.66376,2401.1,2400.8,1.25633429]
[1727929774878,6.66376,2401.1,2400.8,0.8077]
[1727929775311,3.33187,2401.1,2400.8,0.8077]
[1727929775722,6.66377,2401.1,2400.8,0.8077]
[1727929777026,3.33187,2401.1,2400.8,0.8077]
[1727929777202,6.66377,2401.1,2400.8,0.8077]
[1727929777398,3.33187,2401.1,2400.8,0.8077]
[1727929777626,6.66378,2401.1,2400.8,0.8077]
[1727929777992,3.33195,2401.0,2400.8,0.8077]
[1727929780640,6.66379,2401.1,2400.8,0.8077]
[1727929783930,3.33197,2401.0,2400.8,0.8077]
[1727929784444,3.52717,2401.1,2400.6,0.8324]
[1727929784738,3.33208,2400.9,2400.6,0.8324]
[1727929785600,3.33201,2401.0,2400.6,0.8324]
[1727929786907,3.33201,2401.0,2400.7,0.8324]
[1727929789919,3.33211,2400.9,2400.7,0.8324]
[1727929791124,6.66408,2401.0,2400.7,0.8324]
[1727929791452,3.3321,2400.9,2400.7,0.8324]
[1727929793127,3.3321,2400.9,2400.4,4.2079743]
[1727929793437,3.3321,2400.9,2400.5,1.69334784]
[1727929800826,3.3323,2400.8,2400.5,0.7747]
[1727929801332,3.33244,2400.7,2400.5,0.7747]
[1727929801538,3.33244,2400.7,2400.3,0.7873]
[1727929801539,3.3325,2400.6,2400.3,0.7873]
[1727929802137,0.1953,2400.7,2400.3,0.7873]
[1727929802320,0.1953,2400.7,2400.3,1.62016043]
[1727929802516,3.33231,2400.8,2400.3,4.16574043]
[1727929802751,3.33208,2400.9,2400.4,5.34862139]
[1727929802934,3.33224,2400.8,2400.4,0.7873]
[1727929803142,3.33224,2400.8,2400.5,0.49954143]
[1727929803734,3.33208,2400.9,2400.5,0.49954143]
[1727929804376,3.33223,2400.8,2400.5,0.49954143]
[1727929804667,3.33245,2400.7,2400.4,0.7873]
[1727929806361,3.33252,2400.6,2400.2,5.0343643]
[1727929806676,3.33252,2400.6,2400.2,0.8262]
[1727929806819,3.33252,2400.6,2400.2,1.54843592]
[1727929808827,3.33252,2400.6,2400.2,2.42364022]
[1727929809140,3.33252,2400.6,2400.2,1.54843592]
[1727929810056,3.52759,2400.8,2400.2,5.75657022]
[1727929810225,3.52759,2400.8,2400.3,0.71440472]
[1727929810443,0.1953,2401.0,2400.5,4.15953]
[1727929810645,3.3319,2401.1,2400.6,4.081654]
[1727929811048,3.3319,2401.1,2400.7,3.33235]
[1727929811448,6.66381,2401.1,2400.6,0.749224]
[1727929811704,6.66381,2401.1,2400.7,0.4908754]
[1727929812386,6.66382,2401.1,2400.7,0.4908754]
[1727929813185,3.3319,2401.1,2400.7,0.4908754]
[1727929813361,3.332,2401.0,2400.5,4.15963]
[1727929814096,3.332,2401.0,2400.5,4.24293655]
[1727929815807,3.3319,2401.1,2400.6,3.33249]
[1727929816098,3.3319,2401.1,2400.6,4.17758009]
[1727929816971,6.6638,2401.1,2400.6,4.17758009]
[1727929817159,0.03709351,2401.0,2400.6,4.17758009]
[1727929817793,3.36906351,2401.0,2400.6,0.84509009]
[1727929818058,3.36906351,2401.0,2400.5,1.78551085]
[1727929818059,3.36906351,2401.0,2400.7,0.26306009]
[1727929819537,3.36906351,2401.0,2400.7,1.02706009]
[1727929821129,0.03709351,2401.0,2400.7,1.02706009]
[1727929821338,7.387,2401.5,2400.9,0.788]
[1727929821339,10.71828,2401.5,2400.9,0.788]
[1727929821500,3.33128,2401.5,2401.0,0.28918357]
[1727929821713,3.33155,2401.3,2401.0,0.28918357]
[1727929822925,3.33128,2401.5,2401.0,0.28918357]
[1727929823133,6.66262,2401.5,2401.0,0.28918357]
[1727929823330,3.33128,2401.5,2401.1,0.8]
[1727929823534,3.33107,2401.7,2401.1,1.41509064]
[1727929823832,6.66211,2401.7,2401.1,4.74679064]
[1727929824054,3.33104,2401.7,2401.1,4.74679064]
[1727929824224,3.33104,2401.7,2401.2,1.04716599]
[1727929824225,3.33114,2401.6,2401.2,1.04716599]
[1727929826365,3.33114,2401.6,2401.3,0.8251]
[1727929827861,3.33125,2401.5,2401.3,0.8251]
[1727929828376,0.1953,2401.8,2401.3,0.8251]
[1727929828524,3.5258,2402.1,2401.5,0.8251]
[1727929828727,7.387,2402.3,2401.5,0.8251]
[1727929828728,10.71723,2402.3,2401.9,0.8251]
[1727929828926,14.04747,2402.3,2401.9,0.8251]
[1727929829133,10.71723,2402.3,2401.9,0.8251]
[1727929829636,3.33043,2402.1,2401.9,0.8251]
[1727929831938,3.33023,2402.3,2401.9,0.8251]
[1727929832139,3.33023,2402.3,2402.0,0.415585]
[1727929832368,6.85521,2402.5,2402.0,3.746035]
[1727929832582,6.85515,2402.5,2402.0,3.746035]
[1727929832872,3.52521,2402.5,2402.0,3.746035]
[1727929833056,3.32932,2402.9,2402.2,0.7755]
[1727929833057,3.52469,2402.9,2402.2,0.7755]
[1727929833264,3.32952,2402.8,2402.3,0.7755]
[1727929833439,3.32939,2402.9,2402.3,4.77628673]
[1727929833972,3.32939,2402.9,2402.3,1.44621673]
[1727929834175,3.32939,2402.9,2402.3,1.36297002]
[1727929834871,3.3296,2402.7,2402.3,1.36297002]
[1727929835169,3.3296,2402.7,2402.4,0.469316]
[1727929836876,3.32979,2402.6,2402.3,0.7755]
[1727929837360,3.32989,2402.5,2402.3,0.7755]
[1727929839599,3.5249,2402.7,2402.3,0.7755]
[1727929839600,3.32977,2402.6,2402.3,0.7755]
[1727929839897,3.32994,2402.5,2402.1,0.7765]
[1727929840263,3.32994,2402.5,2402.1,1.187198]
[1727929841301,3.33021,2402.3,2401.9,0.7566]
[1727929841805,3.52535,2402.4,2401.9,0.7566]
[1727929842098,7.88853139,2402.5,2401.9,4.495943]
[1727929842269,3.33008,2402.4,2401.9,1.165333]
[1727929843463,3.33008,2402.4,2401.9,4.496013]
[1727929844375,3.33014,2402.3,2401.9,1.165333]
[1727929848390,14.04634,2402.7,2402.2,3.33027]
[1727929848582,14.04634,2402.7,2402.0,3.33055]
[1727929848583,3.32984,2402.6,2402.3,0.7611]
[1727929848784,3.32986,2402.5,2402.3,0.7611]
[1727929850276,10.71666,2402.7,2402.3,0.7611]
[1727929850480,3.32976,2402.6,2402.3,0.7611]
[1727929852634,3.33042,2402.1,2401.7,0.7818]
[1727929852929,3.33057,2402.0,2401.7,0.7818]
[1727929853426,3.33057,2402.0,2401.7,1.193104]
[1727929853624,6.66123,2402.0,2401.7,0.7818]
[1727929853831,3.33072,2401.9,2401.5,0.7818]
[1727929853997,3.33072,2401.9,2401.5,1.19311]
[1727929854541,3.33057,2402.0,2401.5,4.52435]
[1727929854688,3.33057,2402.0,2401.5,1.19311]
[1727929854889,3.3307,2401.9,2401.5,1.19311]
[1727929855580,3.33057,2402.0,2401.5,1.19311]
[1727929855581,3.33057,2402.0,2401.5,4.52431]
[1727929855700,3.33057,2402.0,2401.6,0.785561]
[1727929855895,3.33057,2402.0,2401.7,0.7818]
[1727929856738,6.66074,2402.2,2401.7,0.7818]
[1727929856888,3.33043,2402.1,2401.7,0.7818]
[1727929858303,3.33036,2402.2,2401.7,4.72543024]
[1727929858702,3.33036,2402.2,2401.7,4.80788182]
[1727929859221,3.33036,2402.2,2401.7,4.72543024]
[1727929859440,3.33057,2402.0,2401.7,1.39450024]
[1727929859645,3.33057,2402.0,2401.7,0.7818]
[1727929859804,6.66121,2402.0,2401.7,0.7818]
[1727929860010,3.33078,2401.9,2401.5,0.7928]
[1727929860612,3.33085,2401.8,2401.5,0.7928]
[1727929864472,3.33038,2402.2,2401.6,4.10133]
[1727929864649,3.33038,2402.2,2401.7,0.7703]
[1727929865364,3.33038,2402.2,2401.7,4.10125]
[1727929865517,3.33038,2402.2,2401.8,0.7561]
[1727929865721,3.33038,2402.2,2401.8,1.497908]
[1727929865919,3.33038,2402.2,2401.8,0.7561]
[1727929866560,3.33042,2402.1,2401.8,0.7561]
[1727929866867,3.33038,2402.2,2401.8,0.7561]
[1727929867027,6.66078,2402.2,2401.8,0.7561]
[1727929867226,3.33042,2402.1,2401.8,1.164805]
[1727929868825,3.33038,2402.2,2401.8,1.164805]
[1727929869026,6.66075,2402.2,2401.8,1.164805]
[1727929869971,3.33044,2402.1,2401.8,1.164805]
[1727929870477,3.33044,2402.1,2401.9,0.7912]
[1727929870652,6.66077,2402.2,2401.9,0.7912]
[1727929871221,3.33044,2402.1,2401.9,0.7912]
[1727929871661,3.32915687,2402.1,2401.9,0.7912]
[1727929874038,3.33037,2402.2,2401.9,0.7912]
[1727929874274,6.66076,2402.2,2401.9,0.7912]
[1727929874463,3.33037,2402.2,2401.9,0.7912]
[1727929874682,6.66076,2402.2,2401.9,0.7912]
[1727929874836,3.33037,2402.2,2401.9,0.7912]
[1727929875044,3.33043,2402.1,2401.9,0.7912]
[1727929877476,3.33037,2402.2,2401.9,0.7912]
[1727929877877,3.33037,2402.2,2401.9,1.203417]
[1727929878340,6.66076,2402.2,2401.9,1.203417]
[1727929879037,3.33037,2402.2,2401.9,1.203417]
[1727929879548,3.33015,2402.3,2402.0,0.8268]
[1727929879749,6.66021,2402.4,2402.0,0.8268]
[1727929880886,3.33009,2402.4,2402.0,0.8268]
[1727929881193,3.33009,2402.4,2402.2,0.7987]
[1727929881355,3.33008,2402.4,2402.2,0.7987]
[1727929881941,3.33014,2402.3,2402.2,0.7987]
[1727929882381,3.33008,2402.4,2402.2,0.7987]
[1727929882551,3.33014,2402.3,2402.2,0.7987]
[1727929883443,3.33008,2402.4,2402.2,0.7987]
[1727929884184,6.6602,2402.4,2402.2,0.7987]
[1727929884355,3.33008,2402.4,2402.2,0.7987]
[1727929886477,3.33008,2402.4,2402.2,1.211625]
[1727929888355,3.32982,2402.6,2402.2,1.211625]
[1727929888553,3.32982,2402.6,2402.2,1.29487308]
[1727929889440,0.1953,2403.1,2402.3,0.7781]
[1727929889637,0.1953,2403.3,2402.9,0.7781]
[1727929889884,3.32897,2403.2,2402.9,1.188852]
[1727929890089,3.32917,2403.0,2402.9,0.7781]
[1727929891080,3.32894,2403.2,2402.9,0.7781]
[1727929891293,3.32906,2403.1,2402.9,0.7781]
[1727929891974,6.65795,2403.2,2402.9,0.7781]
[1727929892173,3.32894,2403.2,2402.9,0.7781]
[1727929892376,6.65792,2403.2,2402.9,0.7781]
[1727929892572,3.32894,2403.2,2402.9,0.7781]
[1727929894350,3.32894,2403.2,2402.9,1.19718694]
[1727929897290,3.3494606,2403.5,2403.1,0.798]
[1727929897662,0.0209906,2403.5,2403.1,0.798]
[1727929898160,0.0209906,2403.5,2403.1,4.12694]
[1727929898485,0.0209906,2403.5,2403.2,0.75392579]
[1727929899506,3.3494706,2403.5,2403.2,0.75392579]
[1727929900052,3.32869,2403.4,2403.1,0.798]
[1727929901259,3.32885,2403.3,2402.9,0.7698]
[1727929901563,3.32885,2403.3,2403.0,0.409915]
[1727929901889,3.32885,2403.3,2402.9,0.7698]
[1727929903202,3.32876,2403.3,2402.9,0.7698]
[1727929903794,3.32869,2403.4,2402.9,4.09907]
[1727929903950,3.5448006,2403.5,2403.0,3.32915]
[1727929904154,3.5448006,2403.5,2403.2,0.7812]
[1727929904155,0.0209906,2403.5,2403.2,0.7812]
[1727929905000,0.0209906,2403.5,2403.2,4.11007]
[1727929905152,0.0209906,2403.5,2403.3,0.7812]
[1727929908968,3.32871,2403.4,2403.1,1.172795]
[1727929909261,3.32871,2403.4,2403.1,0.7629]
[1727929909965,3.3495206,2403.5,2403.1,0.7629]
[1727929910170,3.3495206,2403.5,2403.2,0.41709207]
[1727929910561,3.32861,2403.4,2403.1,0.7629]
[1727929910901,6.65736,2403.4,2403.1,0.7629]
[1727929911769,0.0209906,2403.5,2403.1,0.84612393]
[1727929911976,0.0209906,2403.5,2403.2,3.32888]
[1727929912203,0.0209906,2403.5,2403.3,0.742079]
[1727929912776,0.0209906,2403.5,2403.4,0.8128]
[1727929917994,0.0209906,2403.5,2403.3,0.742079]
[1727929919390,0.0209906,2403.5,2403.2,4.14162]
[1727929919391,0.2162906,2403.5,2403.2,0.8128]
[1727929919926,0.2162906,2403.5,2402.9,0.33161557]
[1727929919927,3.32917,2403.0,2402.9,0.33161557]
[1727929920798,4.55462073,2403.1,2402.4,0.7594]
[1727929920981,7.88431073,2402.9,2402.4,0.7594]
[1727929921180,0.1953,2402.8,2402.4,0.7594]
[1727929922076,0.1953,2402.8,2402.3,0.46251831]
[1727929922420,3.32962,2402.7,2402.3,0.46251831]
[1727929923194,0.1953,2402.8,2402.4,0.46199883]
[1727929923521,3.52477,2402.8,2402.4,0.46199883]
[1727929923901,0.1953,2402.8,2402.4,0.46199883]
[1727929924096,3.52476,2402.8,2402.4,0.46199883]
[1727929924715,0.1953,2402.8,2402.4,0.46199883]
[1727929925025,3.52478,2402.8,2402.4,0.46199883]
[1727929926297,0.1953,2402.8,2402.4,0.46199883]
[1727929927486,3.32931,2402.9,2402.4,0.46199883]
[1727929927722,3.32911,2403.1,2402.5,4.47165588]
[1727929927918,6.65823,2403.1,2402.5,4.09245]
[1727929928116,6.65826,2403.1,2402.5,4.09245]
[1727929928803,3.3292,2403.0,2402.5,4.09245]
[1727929929129,3.3292,2403.0,2402.5,4.84302722]
[1727929930728,3.32932,2402.9,2402.5,1.51317722]
[1727929931530,6.65871,2402.9,2402.5,1.51317722]
[1727929931733,3.32932,2402.9,2402.5,1.51317722]
[1727929932090,6.65873,2402.9,2402.5,1.51317722]
[1727929932415,3.32932,2402.9,2402.5,1.51317722]